[Event "WYCC 2018 O14"]
[Site "Halkidiki"]
[Date "2018.10.28"]
[Round "9"]
[White "Cohen Revivo, Shoham"]
[Black "Kasioumis, Vasilios"]
[Result "1/2-1/2"]
[ECO "B40"]
[WhiteElo "2289"]
[BlackElo "2038"]
[Annotator "NA"]
[PlyCount "143"]
[EventDate "2018.10.20"]
[EventType "swiss"]
[EventCountry "GRE"]
[SourceTitle "playchess.com"]
[Source "ChessBase"]
[SourceQuality "1"]
[TimeControl "40/5400+30:1800+30"]

1. e4 {[%emt 0:00:00]} c5 {[%emt 0:00:00]} 2. Nf3 {[%emt 0:00:00]} e6 {[%emt 0:00:00]} 3. Nc3 {[%emt 0:00:00]} Nc6 {[%emt 0:00:00]} 4. Bb5 {[%emt 0:00:00]} Nge7 {[%emt 0:00:00]} 5. O-O {[%emt 0:00:40]} a6 {[%emt 0:01:09]} 6. Bxc6 {[%emt 0:00:06]} Nxc6 {[%emt 0:00:05]} 7. d4 {[%emt 0:00:12]} cxd4 {[%emt 0:01:56]} 8. Nxd4 {[%emt 0:00:02]} Qc7 {[%emt 0:02:20]} 9. Nxc6 {[%emt 0:11:04]} bxc6 {[%emt 0:08:53]} 10. Qh5 {[%emt 0:02:28]} d5 {[%emt 0:14:11]} 11. Re1 {[%emt 0:07:30]} Be7 {[%emt 0:05:33]} 12. e5 {[%emt 0:07:11]} Bb7 {[%emt 0:12:50]} 13. Bf4 {[%emt 0:02:18]} g6 {[%emt 0:04:07]} 14. Qh3 {[%emt 0:06:15]} O-O-O {[%emt 0:01:25]} 15. Ne2 {[%emt 0:09:40]} c5 {[%emt 0:06:47]} 16. Bd2 {[%emt 0:04:34]} g5 {[%emt 0:06:11]} 17. Qh5 {[%emt 0:05:41]} Qxe5 {[%emt 0:12:39]} 18. Qxf7 {[%emt 0:05:03]} Qf6 {[%emt 0:01:36]} 19. Qxf6 {[%emt 0:00:07]} Bxf6 {[%emt 0:00:03]} 20. Ng3 {[%emt 0:00:07]} Kd7 {[%emt 0:01:45]} 21. Nh5 {[%emt 0:00:41]} Ke7 {[%emt 0:00:00]} 22. Re2 {[%emt 0:03:26]} Rhe8 {[%emt 0:00:00]} 23. Rae1 {[%emt 0:01:01]} Kf7 {[%emt 0:00:00]} 24. Nxf6 {[%emt 0:00:19]} Kxf6 {[%emt 0:00:00]} 25. Re5 {[%emt 0:00:04]} h6 {[%emt 0:01:10]} 26. h4 {[%emt 0:00:13]} gxh4 {[%emt 0:00:42]} 27. Bxh6 {[%emt 0:00:09]} Rc8 {[%emt 0:01:09]} 28. Bg5+ {[%emt 0:03:29]} Kf7 {[%emt 0:00:03]} 29. Bxh4 {[%emt 0:00:35]} d4 {[%emt 0:00:08]} 30. f4 {[%emt 0:06:26]} c4 {[%emt 0:04:31]} 31. f5 {[%emt 0:03:55]} exf5 {[%emt 0:01:22]} 32. Rxf5+ {[%emt 0:00:06]} Kg6 {[%emt 0:00:13]} 33. Ref1 {[%emt 0:01:07]} Re6 {[%emt 0:04:40]} 34. Rg5+ {[%emt 0:11:20]} Kh6 {[%emt 0:00:07]} 35. Rg3 {[%emt 0:01:37]} Be4 {[%emt 0:01:41]} 36. Bg5+ {[%emt 0:00:31]} Kh5 {[%emt 0:00:11]} 37. Rf4 {[%emt 0:03:16]} d3 {[%emt 0:03:28]} 38. Rh4+ {[%emt 0:00:00]} Kg6 {[%emt 0:00:00]} 39. Bd2+ {[%emt 0:06:35]} Kf7 {[%emt 0:01:45]} 40. Rf4+ {[%emt 0:00:00]} Ke7 {[%emt 0:00:00]} 41. Re3 {[%emt 0:03:04]} Bd5 {[%emt 0:04:44]} 42. Rd4 {[%emt 0:12:47]} Rxe3 {[%emt 0:03:32]} 43. Bxe3 {[%emt 0:00:02]} Ke6 {[%emt 0:00:08]} 44. cxd3 {[%emt 0:00:05]} cxd3 {[%emt 0:00:04]} 45. Rxd3 {[%emt 0:00:59]} Rc2 {[%emt 0:02:19]} 46. Bd2 {[%emt 0:01:12]} Rxb2 {[%emt 0:01:10]} 47. a4 {[%emt 0:00:05]} Ra2 {[%emt 0:01:25]} 48. a5 {[%emt 0:00:04]} Ra4 {[%emt 0:01:31]} 49. Rg3 {[%emt 0:01:39]} Ra2 {[%emt 0:00:53]} 50. Bc3 {[%emt 0:00:31]} Rxg2+ {[%emt 0:00:12]} 51. Rxg2 {[%emt 0:00:08]} Bxg2 {[%emt 0:00:05]} 52. Kxg2 {[%emt 0:00:06]} Kd7 {[%emt 0:00:03]} 53. Kf3 {[%emt 0:00:37]} Kc8 {[%emt 0:00:04]} 54. Be5 {[%emt 0:00:05]} Kb7 {[%emt 0:00:04]} 55. Ke4 {[%emt 0:00:04]} Ka8 {[%emt 0:00:04]} 56. Kd4 {[%emt 0:00:07]} Ka7 {[%emt 0:00:04]} 57. Kc5 {[%emt 0:00:06]} Ka8 {[%emt 0:00:05]} 58. Bd4 {[%emt 0:00:09]} Kb7 {[%emt 0:00:07]} 59. Bc3 {[%emt 0:00:06]} Ka7 {[%emt 0:00:24]} 60. Kc6 {[%emt 0:00:11]} Kb8 {[%emt 0:00:07]} 61. Be5+ {[%emt 0:00:14]} Ka7 {[%emt 0:00:11]} 62. Bc7 {[%emt 0:00:09]} Ka8 {[%emt 0:00:04]} 63. Bb6 {[%emt 0:00:41]} Kb8 {[%emt 0:00:06]} 64. Bc5 {[%emt 0:00:13]} Ka8 {[%emt 0:00:07]} 65. Kb6 {[%emt 0:00:05]} Kb8 {[%emt 0:00:04]} 66. Bd6+ {[%emt 0:00:10]} Ka8 {[%emt 0:00:03]} 67. Bb8 {[%emt 0:00:03]} Kxb8 {[%emt 0:00:05]} 68. Kxa6 {[%emt 0:00:07]} Kc7 {[%emt 0:00:40]} 69. Ka7 {[%emt 0:00:06]} Kc8 {[%emt 0:00:05]} 70. a6 {[%emt 0:00:06]} Kc7 {[%emt 0:00:05]} 71. Ka8 {[%emt 0:00:04]} Kc8 {[%emt 0:00:03]} 72. a7 {[%emt 0:00:05]} 1/2-1/2

[Event "WYCC 2018 O14"]
[Site "Halkidiki"]
[Date "2018.10.28"]
[Round "9"]
[White "Gines Esteo, Pedro Antonio"]
[Black "Kacharava, Nikolozi"]
[Result "1/2-1/2"]
[ECO "D26"]
[WhiteElo "2288"]
[BlackElo "2373"]
[Annotator "NA"]
[PlyCount "117"]
[EventDate "2018.10.20"]
[EventType "swiss"]
[EventCountry "GRE"]
[SourceTitle "playchess.com"]
[Source "ChessBase"]
[SourceQuality "1"]
[TimeControl "40/5400+30:1800+30"]

1. d4 {[%emt 0:00:00]} d5 {[%emt 0:00:11]} 2. Nf3 {[%emt 0:00:26]} Nf6 {[%emt 0:00:57]} 3. c4 {[%emt 0:01:09]} dxc4 {[%emt 0:01:05]} 4. e3 {[%emt 0:06:06]} e6 {[%emt 0:01:23]} 5. Bxc4 {[%emt 0:00:09]} c5 {[%emt 0:00:37]} 6. dxc5 {[%emt 0:01:27]} Qxd1+ {[%emt 0:02:38]} 7. Kxd1 {[%emt 0:00:07]} Bxc5 {[%emt 0:00:24]} 8. Ke2 {[%emt 0:00:32]} a6 {[%emt 0:02:44]} 9. a3 {[%emt 0:01:11]} Nbd7 {[%emt 0:01:26]} 10. b4 {[%emt 0:01:28]} Be7 {[%emt 0:04:44]} 11. Bb2 {[%emt 0:00:39]} b5 {[%emt 0:03:27]} 12. Bd3 {[%emt 0:00:40]} Bb7 {[%emt 0:05:39]} 13. Nbd2 {[%emt 0:01:01]} O-O {[%emt 0:01:54]} 14. Rhc1 {[%emt 0:03:42]} Rac8 {[%emt 0:03:17]} 15. Bd4 {[%emt 0:10:34]} Nd5 {[%emt 0:04:16]} 16. g3 {[%emt 0:05:26]} N5b6 {[%emt 0:09:51]} 17. h4 {[%emt 0:09:30]} Na4 {[%emt 0:06:34]} 18. Bc2 {[%emt 0:10:43]} Bd6 {[%emt 0:04:44]} 19. Ng5 {[%emt 0:15:47]} h6 {[%emt 0:09:14]} 20. Bh7+ {[%emt 0:02:35]} Kh8 {[%emt 0:00:01]} 21. Be4 {[%emt 0:00:09]} Rb8 {[%emt 0:08:04]} 22. Ngf3 {[%emt 0:02:04]} e5 {[%emt 0:12:24]} 23. Ba7 {[%emt 0:00:19]} Ra8 {[%emt 0:01:32]} 24. Bxb7 {[%emt 0:00:44]} Rxa7 {[%emt 0:00:01]} 25. Bd5 {[%emt 0:07:51]} Nab6 {[%emt 0:04:05]} 26. Bb3 {[%emt 0:03:08]} f5 {[%emt 0:04:39]} 27. Rc6 {[%emt 0:00:58]} Rf6 {[%emt 0:02:34]} 28. h5 {[%emt 0:05:41]} a5 {[%emt 0:02:32]} 29. bxa5 {[%emt 0:04:41]} Rxa5 {[%emt 0:00:07]} 30. Nh4 {[%emt 0:00:06]} Bxa3 {[%emt 0:01:49]} 31. Rxf6 {[%emt 0:01:46]} Nxf6 {[%emt 0:01:09]} 32. Ng6+ {[%emt 0:00:46]} Kh7 {[%emt 0:00:00]} 33. Nxe5 {[%emt 0:00:09]} Bb4 {[%emt 0:01:28]} 34. Rxa5 {[%emt 0:03:34]} Bxa5 {[%emt 0:00:02]} 35. Bc2 {[%emt 0:00:06]} Bxd2 {[%emt 0:00:59]} 36. Bxf5+ {[%emt 0:00:44]} Kg8 {[%emt 0:00:28]} 37. Kxd2 {[%emt 0:00:05]} Nxh5 {[%emt 0:00:28]} 38. Bd3 {[%emt 0:00:35]} b4 {[%emt 0:00:43]} 39. Nc6 {[%emt 0:01:49]} b3 {[%emt 0:00:17]} 40. Bf5 {[%emt 0:00:00]} Kf7 {[%emt 0:00:00]} 41. Kc3 {[%emt 0:05:12]} Nd5+ {[%emt 0:08:20]} 42. Kxb3 {[%emt 0:00:21]} Nxg3 {[%emt 0:01:39]} 43. fxg3 Nxe3 {[%emt 0:00:09]} 44. Bd3 {[%emt 0:02:55]} Kf6 {[%emt 0:04:35]} 45. Kc3 {[%emt 0:00:10]} Nf5 {[%emt 0:01:16]} 46. g4 {[%emt 0:01:25]} Ne7 {[%emt 0:07:17]} 47. Nd8 {[%emt 0:01:20]} g6 {[%emt 0:00:44]} 48. Kd4 {[%emt 0:00:25]} h5 {[%emt 0:00:46]} 49. gxh5 {[%emt 0:00:07]} gxh5 {[%emt 0:00:06]} 50. Ke4 {[%emt 0:00:18]} Ng6 {[%emt 0:00:32]} 51. Nc6 {[%emt 0:00:56]} Kg5 {[%emt 0:00:40]} 52. Kf3 {[%emt 0:00:13]} Kf6 {[%emt 0:00:28]} 53. Ke4 {[%emt 0:00:34]} Kg5 {[%emt 0:00:06]} 54. Nd4 {[%emt 0:01:10]} h4 {[%emt 0:01:18]} 55. Be2 {[%emt 0:00:54]} h3 {[%emt 0:01:18]} 56. Nf3+ {[%emt 0:01:01]} Kg4 {[%emt 0:01:44]} 57. Ne5+ {[%emt 0:00:47]} Kg5 {[%emt 0:00:05]} 58. Nf3+ {[%emt 0:00:32]} Kg4 {[%emt 0:00:17]} 59. Ne5+ {[%emt 0:00:08]} 1/2-1/2

[Event "WYCC 2018 O14"]
[Site "Halkidiki"]
[Date "2018.10.28"]
[Round "9"]
[White "Avila Pavas, Santiago"]
[Black "Krastev, Alexander"]
[Result "0-1"]
[ECO "A49"]
[WhiteElo "2277"]
[BlackElo "2298"]
[Annotator "NA"]
[PlyCount "76"]
[EventDate "2018.10.20"]
[EventType "swiss"]
[EventCountry "GRE"]
[SourceTitle "playchess.com"]
[Source "ChessBase"]
[SourceQuality "1"]
[TimeControl "40/5400+30:1800+30"]

1. d4 {[%emt 0:00:00]} Nf6 {[%emt 0:00:00]} 2. Nf3 {[%emt 0:00:00]} g6 {[%emt 0:00:00]} 3. g3 {[%emt 0:00:28]} Bg7 {[%emt 0:00:00]} 4. Bg2 {[%emt 0:00:17]} c5 {[%emt 0:01:03]} 5. O-O {[%emt 0:01:48]} O-O {[%emt 0:00:22]} 6. c4 {[%emt 0:02:59]} Nc6 {[%emt 0:06:11]} 7. d5 {[%emt 0:12:03]} Na5 {[%emt 0:01:02]} 8. Nfd2 {[%emt 0:00:05]} e6 {[%emt 0:04:24]} 9. Nc3 {[%emt 0:05:57]} d6 {[%emt 0:02:41]} 10. Qc2 {[%emt 0:14:47]} Re8 {[%emt 0:02:52]} 11. e4 {[%emt 0:12:04]} exd5 {[%emt 0:04:31]} 12. cxd5 {[%emt 0:00:15]} a6 {[%emt 0:00:45]} 13. b3 {[%emt 0:02:40]} Bd7 {[%emt 0:05:04]} 14. Bb2 {[%emt 0:01:20]} b5 $14 {[%emt 0:03:49]} 15. Rae1 {[%emt 0:06:04]} b4 {[%emt 0:12:40]} 16. Ncb1 {[%emt 0:05:35]} Bb5 {[%emt 0:07:20]} 17. Nc4 {[%emt 0:00:08]} Bxc4 {[%emt 0:07:47]} 18. bxc4 {[%emt 0:00:06]} Nd7 {[%emt 0:00:07]} 19. Bxg7 {[%emt 0:02:43]} Kxg7 {[%emt 0:00:03]} 20. Nd2 {[%emt 0:01:11]} Nb6 {[%emt 0:01:25]} 21. f4 {[%emt 0:03:40]} Ra7 {[%emt 0:01:19]} 22. Bh3 {[%emt 0:08:33]} Rae7 {[%emt 0:03:40]} 23. a3 {[%emt 0:02:02]} Kg8 {[%emt 0:03:00]} 24. axb4 {[%emt 0:01:51]} cxb4 {[%emt 0:00:04]} 25. c5 {[%emt 0:00:16]} Nxd5 {[%emt 0:03:52]} 26. Qb1 {[%emt 0:10:29]} Qc7 {[%emt 0:17:02]} 27. Rc1 {[%emt 0:05:23]} Nc3 {[%emt 0:01:52]} 28. Qxb4 {[%emt 0:00:01]} Ne2+ {[%emt 0:00:16]} 29. Kh1 {[%emt 0:01:04]} Nxc1 {[%emt 0:00:33]} 30. cxd6 {[%emt 0:00:00]} Nd3 {[%emt 0:05:39]} 31. Qa3 {[%emt 0:01:10]} Nc4 {[%emt 0:04:15]} 32. Nxc4 {[%emt 0:00:23]} Qxc4 {[%emt 0:00:19]} 33. dxe7 {[%emt 0:00:05]} Qxe4+ {[%emt 0:00:37]} 34. Bg2 {[%emt 0:00:01]} Qe3 {[%emt 0:00:49]} 35. Qa2 {[%emt 0:01:30]} Rxe7 {[%emt 0:00:34]} 36. Rf3 {[%emt 0:00:29]} Qc1+ {[%emt 0:00:31]} 37. Bf1 {[%emt 0:00:29]} Qd1 {[%emt 0:01:12]} 38. Qd5 {[%emt 0:00:33]} Nf2+ {[%emt 0:00:07]} 0-1

[Event "WYCC 2018 O14"]
[Site "Halkidiki"]
[Date "2018.10.28"]
[Round "9"]
[White "Gombocz, Ferenc Jr."]
[Black "Zhukenov, Aituar"]
[Result "1-0"]
[ECO "A20"]
[WhiteElo "2271"]
[BlackElo "2025"]
[Annotator "NA"]
[PlyCount "49"]
[EventDate "2018.10.20"]
[EventType "swiss"]
[EventCountry "GRE"]
[SourceTitle "playchess.com"]
[Source "ChessBase"]
[SourceQuality "1"]
[TimeControl "40/5400+30:1800+30"]

1. c4 {[%emt 0:00:00]} e5 {[%emt 0:00:03]} 2. g3 {[%emt 0:00:00]} Nf6 {[%emt 0:00:32]} 3. Bg2 {[%emt 0:00:00]} d5 {[%emt 0:00:18]} 4. cxd5 {[%emt 0:00:15]} Nxd5 {[%emt 0:00:05]} 5. Nc3 {[%emt 0:00:11]} Nb6 {[%emt 0:00:11]} 6. e3 {[%emt 0:00:18]} Nc6 {[%emt 0:00:42]} 7. Nge2 {[%emt 0:01:51]} Bd6 {[%emt 0:02:34]} 8. O-O {[%emt 0:00:37]} O-O {[%emt 0:00:39]} 9. d4 {[%emt 0:04:47]} exd4 {[%emt 0:09:15]} 10. Nxd4 {[%emt 0:00:36]} Nxd4 {[%emt 0:01:20]} 11. exd4 {[%emt 0:08:10]} c6 {[%emt 0:05:41]} 12. d5 {[%emt 0:03:18]} cxd5 {[%emt 0:01:53]} 13. Nxd5 {[%emt 0:01:42]} Be6 {[%emt 0:07:52]} 14. Ne3 $11 {[%emt 0:15:55]} Be5 {[%emt 0:11:41]} 15. Qh5 {[%emt 0:05:56]} Qc7 {[%emt 0:09:37]} 16. Ng4 {[%emt 0:05:45]} Bd6 {[%emt 0:07:00]} 17. Re1 {[%emt 0:10:41]} Qc5 {[%emt 0:06:34]} 18. Bg5 {[%emt 0:07:55]} Rae8 {[%emt 0:12:11]} 19. b4 {[%emt 0:12:25]} Qxb4 {[%emt 0:05:59]} 20. Nf6+ {[%emt 0:00:28]} gxf6 {[%emt 0:00:31]} 21. Be4 {[%emt 0:00:08]} Bf5 {[%emt 0:08:16]} 22. Bxf5 {[%emt 0:03:06]} Rxe1+ {[%emt 0:00:10]} 23. Kg2 {[%emt 0:00:13]} Ra8 {[%emt 0:03:35]} 24. Qxh7+ {[%emt 0:00:12]} Kf8 {[%emt 0:00:00]} 25. Qh8+ {[%emt 0:00:11]} 1-0

[Event "WYCC 2018 O14"]
[Site "Halkidiki"]
[Date "2018.10.28"]
[Round "9"]
[White "Czopor, Maciej"]
[Black "Bassini, Emile"]
[Result "0-1"]
[ECO "B90"]
[WhiteElo "2219"]
[BlackElo "2002"]
[Annotator "NA"]
[PlyCount "146"]
[EventDate "2018.10.20"]
[EventType "swiss"]
[EventCountry "GRE"]
[SourceTitle "playchess.com"]
[Source "ChessBase"]
[SourceQuality "1"]
[TimeControl "40/5400+30:1800+30"]

1. e4 {[%emt 0:00:00]} c5 {[%emt 0:00:00]} 2. Nf3 {[%emt 0:00:00]} d6 {[%emt 0:00:00]} 3. d4 {[%emt 0:00:08]} cxd4 {[%emt 0:00:00]} 4. Nxd4 {[%emt 0:00:11]} Nf6 {[%emt 0:00:00]} 5. Nc3 {[%emt 0:00:12]} a6 {[%emt 0:00:00]} 6. Be3 {[%emt 0:00:15]} Ng4 {[%emt 0:00:00]} 7. Bg5 {[%emt 0:01:30]} h6 {[%emt 0:00:00]} 8. Bh4 {[%emt 0:00:14]} g5 {[%emt 0:00:06]} 9. Bg3 {[%emt 0:00:12]} Bg7 {[%emt 0:00:02]} 10. Be2 {[%emt 0:01:27]} h5 {[%emt 0:00:24]} 11. Bxg4 {[%emt 0:01:10]} hxg4 {[%emt 0:00:07]} 12. O-O {[%emt 0:16:29]} e6 {[%emt 0:00:07]} 13. Qd3 {[%emt 0:20:14]} Nd7 {[%emt 0:00:23]} 14. Rad1 {[%emt 0:02:53]} Ne5 {[%emt 0:01:17]} 15. Qe2 {[%emt 0:02:09]} b5 {[%emt 0:06:13]} 16. a4 {[%emt 0:10:31]} bxa4 {[%emt 0:01:22]} 17. Nxa4 {[%emt 0:01:56]} Bb7 {[%emt 0:09:39]} 18. b3 {[%emt 0:13:09]} Rc8 {[%emt 0:17:23]} 19. Rd2 {[%emt 0:01:27]} Qe7 {[%emt 0:03:04]} 20. Rfd1 {[%emt 0:03:29]} O-O {[%emt 0:02:05]} 21. f3 {[%emt 0:04:17]} f5 {[%emt 0:02:34]} 22. exf5 {[%emt 0:02:53]} exf5 {[%emt 0:18:29]} 23. f4 {[%emt 0:01:40]} gxf4 {[%emt 0:07:59]} 24. Bxf4 {[%emt 0:00:12]} Nf3+ {[%emt 0:06:12]} 25. Nxf3 {[%emt 0:01:08]} Qxe2 {[%emt 0:00:06]} 26. Rxe2 {[%emt 0:00:08]} gxf3 {[%emt 0:00:03]} 27. Re7 {[%emt 0:04:38]} Rf7 {[%emt 0:00:06]} 28. Rxf7 {[%emt 0:01:29]} Kxf7 {[%emt 0:00:06]} 29. gxf3 {[%emt 0:02:18]} Rxc2 {[%emt 0:01:38]} 30. Rxd6 {[%emt 0:00:41]} Bxf3 {[%emt 0:00:13]} 31. Rd7+ {[%emt 0:01:43]} Kg6 {[%emt 0:00:52]} 32. Nb6 {[%emt 0:01:00]} Bf8 {[%emt 0:10:23]} 33. Bd6 {[%emt 0:03:52]} Bxd6 {[%emt 0:07:22]} 34. Rxd6+ {[%emt 0:00:09]} Kg5 {[%emt 0:00:23]} 35. Nc4 {[%emt 0:00:44]} Ra2 {[%emt 0:01:06]} 36. Rd2 {[%emt 0:01:08]} Ra1+ {[%emt 0:00:41]} 37. Kf2 {[%emt 0:00:06]} Kf4 {[%emt 0:01:13]} 38. Nb2 {[%emt 0:02:19]} Be4 {[%emt 0:00:36]} 39. Nc4 {[%emt 0:00:57]} Rb1 {[%emt 0:00:42]} 40. Rb2 {[%emt 0:00:00]} Rh1 {[%emt 0:00:00]} 41. Nd2 {[%emt 0:05:04]} Rxh2+ {[%emt 0:00:32]} 42. Ke1 {[%emt 0:01:43]} Bd3 {[%emt 0:07:59]} 43. b4 {[%emt 0:06:55]} Bb5 {[%emt 0:01:34]} 44. Rc2 {[%emt 0:04:36]} Re2+ {[%emt 0:04:37]} 45. Kd1 {[%emt 0:00:11]} Ba4 {[%emt 0:06:24]} 46. Kxe2 {[%emt 0:00:22]} Bxc2 {[%emt 0:00:06]} 47. Nc4 {[%emt 0:01:34]} Ke4 {[%emt 0:00:53]} 48. Kd2 {[%emt 0:10:47]} Kd4 {[%emt 0:02:49]} 49. Na5 {[%emt 0:03:01]} Ba4 {[%emt 0:04:16]} 50. Nb7 {[%emt 0:00:10]} Bb5 {[%emt 0:00:15]} 51. Nc5 {[%emt 0:01:13]} Kc4 {[%emt 0:01:33]} 52. Nd3 {[%emt 0:00:43]} Kb3 {[%emt 0:00:17]} 53. Nf4 {[%emt 0:00:19]} Kxb4 {[%emt 0:00:19]} 54. Kc2 {[%emt 0:00:23]} Kc4 {[%emt 0:01:19]} 55. Kb2 {[%emt 0:00:37]} Kd4 {[%emt 0:00:26]} 56. Ka1 {[%emt 0:00:39]} Ke4 {[%emt 0:01:55]} 57. Nh5 {[%emt 0:00:18]} Ke3 {[%emt 0:01:30]} 58. Kb2 {[%emt 0:00:41]} Be2 {[%emt 0:01:03]} 59. Ng7 {[%emt 0:00:24]} f4 {[%emt 0:00:08]} 60. Nf5+ {[%emt 0:00:10]} Ke4 {[%emt 0:00:53]} 61. Nh4 {[%emt 0:00:15]} Bg4 {[%emt 0:00:48]} 62. Kc3 {[%emt 0:00:19]} Bh3 {[%emt 0:00:44]} 63. Kb4 {[%emt 0:00:39]} Bf1 {[%emt 0:02:10]} 64. Kc3 {[%emt 0:00:07]} a5 {[%emt 0:00:21]} 65. Kb2 {[%emt 0:00:17]} a4 {[%emt 0:00:08]} 66. Ka3 {[%emt 0:00:11]} Bb5 {[%emt 0:00:04]} 67. Kb2 {[%emt 0:00:14]} Bc6 {[%emt 0:00:05]} 68. Ka3 {[%emt 0:00:15]} Kd4 {[%emt 0:02:55]} 69. Kb4 {[%emt 0:00:32]} Be4 {[%emt 0:01:05]} 70. Kxa4 {[%emt 0:00:16]} Ke3 {[%emt 0:00:05]} 71. Kb3 {[%emt 0:00:09]} Kf2 {[%emt 0:00:05]} 72. Kc3 {[%emt 0:00:07]} Kg3 {[%emt 0:00:08]} 73. Kd4 {[%emt 0:00:23]} Kxh4 {[%emt 0:00:04]} 0-1

[Event "WYCC 2018 O14"]
[Site "Halkidiki"]
[Date "2018.10.28"]
[Round "9"]
[White "Tengis, Tsog-Ochir"]
[Black "Spyropoulos, Nikolaos"]
[Result "0-1"]
[ECO "D00"]
[WhiteElo "2205"]
[BlackElo "2378"]
[Annotator "NA"]
[PlyCount "110"]
[EventDate "2018.10.20"]
[EventType "swiss"]
[EventCountry "GRE"]
[SourceTitle "playchess.com"]
[Source "ChessBase"]
[SourceQuality "1"]
[TimeControl "40/5400+30:1800+30"]

1. d4 {[%emt 0:00:00]} d5 {[%emt 0:00:07]} 2. g3 {[%emt 0:00:00]} Nc6 {[%emt 0:00:28]} 3. Bg2 {[%emt 0:00:00]} Bg4 {[%emt 0:00:29]} 4. Nf3 {[%emt 0:00:00]} Qd7 {[%emt 0:00:16]} 5. h3 {[%emt 0:00:23]} Bxf3 {[%emt 0:00:31]} 6. exf3 {[%emt 0:01:18]} h5 {[%emt 0:02:19]} 7. O-O {[%emt 0:00:09]} e6 {[%emt 0:05:12]} 8. c3 {[%emt 0:00:03]} Bd6 {[%emt 0:03:55]} 9. b4 {[%emt 0:00:48]} Nge7 {[%emt 0:22:31]} 10. Nd2 {[%emt 0:01:21]} h4 {[%emt 0:07:38]} 11. g4 {[%emt 0:01:58]} Ng6 {[%emt 0:01:54]} 12. Nb3 {[%emt 0:01:03]} b6 {[%emt 0:01:26]} 13. Bd2 {[%emt 0:03:06]} Nf4 {[%emt 0:07:25]} 14. Nc1 {[%emt 0:02:12]} Ne7 $15 {[%emt 0:01:52]} 15. Bxf4 {[%emt 0:01:04]} Bxf4 {[%emt 0:00:05]} 16. Nd3 {[%emt 0:00:06]} Ng6 {[%emt 0:00:26]} 17. Re1 {[%emt 0:00:02]} a5 {[%emt 0:02:37]} 18. a4 {[%emt 0:00:01]} O-O {[%emt 0:01:58]} 19. Bf1 {[%emt 0:00:25]} Qe7 {[%emt 0:06:49]} 20. Qc2 {[%emt 0:10:26]} Qf6 {[%emt 0:11:45]} 21. b5 {[%emt 0:12:48]} Rac8 {[%emt 0:01:30]} 22. c4 {[%emt 0:21:35]} c6 {[%emt 0:09:31]} 23. Qa2 {[%emt 0:25:29]} Qxd4 {[%emt 0:01:35]} 24. bxc6 {[%emt 0:00:02]} Qxc4 {[%emt 0:06:37]} 25. Qxc4 {[%emt 0:02:30]} dxc4 {[%emt 0:00:03]} 26. Nxf4 {[%emt 0:00:03]} Nxf4 {[%emt 0:00:04]} 27. Re4 {[%emt 0:00:06]} Nd3 {[%emt 0:01:23]} 28. Rxc4 {[%emt 0:00:01]} Ne5 {[%emt 0:00:06]} 29. Re4 {[%emt 0:00:46]} Nxf3+ {[%emt 0:01:58]} 30. Kg2 {[%emt 0:00:01]} Nd2 {[%emt 0:00:07]} 31. Re2 {[%emt 0:00:23]} Nxf1 {[%emt 0:00:05]} 32. Rc1 {[%emt 0:00:06]} Rfd8 {[%emt 0:00:16]} 33. Kxf1 {[%emt 0:00:08]} Rd6 {[%emt 0:00:28]} 34. Rec2 {[%emt 0:01:10]} Kf8 {[%emt 0:01:14]} 35. c7 {[%emt 0:03:19]} Ke7 {[%emt 0:00:22]} 36. Rc4 {[%emt 0:01:19]} Rd3 {[%emt 0:01:34]} 37. Kg2 {[%emt 0:01:58]} Kd7 {[%emt 0:00:46]} 38. Rf4 {[%emt 0:05:53]} f6 {[%emt 0:00:49]} 39. g5 {[%emt 0:00:14]} Rxc7 {[%emt 0:00:35]} 40. gxf6 {[%emt 0:00:00]} gxf6 {[%emt 0:00:00]} 41. Rb1 {[%emt 0:00:36]} Rc6 {[%emt 0:01:29]} 42. Rxh4 {[%emt 0:00:09]} e5 {[%emt 0:00:32]} 43. Rh7+ {[%emt 0:00:04]} Ke6 {[%emt 0:00:05]} 44. Rb7 {[%emt 0:00:39]} Rd4 {[%emt 0:01:24]} 45. R7xb6 {[%emt 0:01:08]} Rxb6 {[%emt 0:00:07]} 46. Rxb6+ {[%emt 0:00:12]} Kf5 {[%emt 0:00:03]} 47. Ra6 {[%emt 0:00:18]} Rxa4 {[%emt 0:00:12]} 48. Kg3 {[%emt 0:01:45]} Ra1 {[%emt 0:04:10]} 49. Kg2 {[%emt 0:00:36]} a4 {[%emt 0:01:12]} 50. Kh2 {[%emt 0:01:41]} a3 {[%emt 0:01:01]} 51. Kg2 {[%emt 0:01:10]} a2 {[%emt 0:01:14]} 52. Kf3 {[%emt 0:01:09]} e4+ {[%emt 0:02:02]} 53. Kg2 {[%emt 0:02:07]} Kg5 {[%emt 0:00:12]} 54. Ra8 {[%emt 0:09:26]} f5 {[%emt 0:00:13]} 55. Rg8+ {[%emt 0:00:14]} Kh6 {[%emt 0:00:48]} 0-1

[Event "WYCC 2018 O14"]
[Site "Halkidiki"]
[Date "2018.10.28"]
[Round "9"]
[White "Juhasz, Agoston"]
[Black "Ibarra, Juan Martin"]
[Result "1-0"]
[ECO "B50"]
[WhiteElo "2174"]
[BlackElo "1899"]
[Annotator "NA"]
[PlyCount "89"]
[EventDate "2018.10.20"]
[EventType "swiss"]
[EventCountry "GRE"]
[SourceTitle "playchess.com"]
[Source "ChessBase"]
[SourceQuality "1"]
[TimeControl "40/5400+30:1800+30"]

1. e4 {[%emt 0:00:00]} c5 {[%emt 0:00:00]} 2. Nf3 {[%emt 0:00:00]} d6 {[%emt 0:00:00]} 3. Bc4 {[%emt 0:00:12]} Nc6 {[%emt 0:04:45]} 4. c3 {[%emt 0:02:42]} e6 {[%emt 0:02:32]} 5. Bb3 {[%emt 0:03:33]} Nf6 {[%emt 0:14:42]} 6. d3 {[%emt 0:01:15]} Be7 {[%emt 0:01:29]} 7. O-O {[%emt 0:01:11]} O-O {[%emt 0:00:17]} 8. Re1 {[%emt 0:00:33]} e5 {[%emt 0:01:58]} 9. Nbd2 {[%emt 0:01:43]} Qc7 {[%emt 0:01:31]} 10. a4 {[%emt 0:03:57]} Bg4 {[%emt 0:02:53]} 11. Nc4 {[%emt 0:07:02]} Na5 {[%emt 0:16:18]} 12. Nxa5 {[%emt 0:10:54]} Qxa5 {[%emt 0:01:21]} 13. h3 {[%emt 0:00:21]} Bxf3 {[%emt 0:04:27]} 14. Qxf3 {[%emt 0:00:25]} Rac8 {[%emt 0:07:52]} 15. g4 {[%emt 0:05:01]} b5 {[%emt 0:04:16]} 16. g5 {[%emt 0:01:27]} Nd7 {[%emt 0:01:15]} 17. Be3 {[%emt 0:17:51]} b4 {[%emt 0:00:19]} 18. Bd2 {[%emt 0:02:30]} Qd8 {[%emt 0:02:25]} 19. h4 {[%emt 0:06:11]} bxc3 {[%emt 0:01:04]} 20. bxc3 {[%emt 0:02:21]} Kh8 {[%emt 0:01:01]} 21. Kh1 {[%emt 0:05:32]} c4 {[%emt 0:04:12]} 22. Bxc4 {[%emt 0:00:54]} Rxc4 {[%emt 0:00:05]} 23. dxc4 {[%emt 0:00:09]} Qc8 {[%emt 0:00:04]} 24. Rab1 {[%emt 0:04:01]} Nb6 {[%emt 0:02:25]} 25. Qf5 {[%emt 0:04:03]} Qc6 {[%emt 0:00:28]} 26. c5 {[%emt 0:04:34]} g6 {[%emt 0:00:33]} 27. Qf3 {[%emt 0:01:21]} dxc5 {[%emt 0:00:55]} 28. Be3 {[%emt 0:02:58]} f5 {[%emt 0:00:33]} 29. gxf6 {[%emt 0:00:30]} Rxf6 {[%emt 0:00:05]} 30. Qg4 {[%emt 0:00:49]} h5 {[%emt 0:05:06]} 31. Qg2 {[%emt 0:00:57]} Rf8 {[%emt 0:00:38]} 32. Bg5 {[%emt 0:01:09]} Bxg5 {[%emt 0:00:43]} 33. Qxg5 {[%emt 0:02:06]} Qe6 {[%emt 0:02:55]} 34. Qg3 {[%emt 0:01:28]} Rf4 {[%emt 0:01:23]} 35. f3 {[%emt 0:03:55]} Nc4 {[%emt 0:12:55]} 36. Rb8+ {[%emt 0:01:06]} Kg7 {[%emt 0:00:54]} 37. Reb1 {[%emt 0:00:26]} Nd6 {[%emt 0:00:38]} 38. Ra8 {[%emt 0:00:34]} Qa2 {[%emt 0:01:06]} 39. Rxa7+ {[%emt 0:00:12]} Nf7 {[%emt 0:00:04]} 40. Rb6 {[%emt 0:00:00]} Qa1+ {[%emt 0:00:00]} 41. Kh2 {[%emt 0:04:54]} Qa2+ {[%emt 0:03:26]} 42. Qg2 {[%emt 0:08:04]} Rxh4+ {[%emt 0:00:08]} 43. Kg3 {[%emt 0:00:36]} Rg4+ 44. fxg4 {[%emt 0:00:20]} Qa1 {[%emt 0:06:16]} 45. Rxf7+ {[%emt 0:01:37]} 1-0